[Event "*** SCC Grand Prix: Titled Tuesday Blitz"]
[Site "Chess.com"]
[Date "2020.08.25"]
[Round "1"]
[White "DrMamaliga"]
[Black "Iskusnyh"]
[Result "0-1"]
[WhiteElo "2225"]
[BlackElo "2555"]
[TimeControl "180+1"]
[EndTime "10:07:21 PDT"]
[Termination "Iskusnyh won by resignation"]

1. c4 {[%clk 0:03:00.4]} 1... c5 {[%clk 0:02:56.9]} 2. Nf3 {[%clk 0:03:00.1]}
2... g6 {[%clk 0:02:55.4]} 3. d4 {[%clk 0:03:00]} 3... cxd4 {[%clk 0:02:55.7]}
4. Nxd4 {[%clk 0:03:00.9]} 4... Nc6 {[%clk 0:02:55.5]} 5. e4 {[%clk 0:02:55.8]}
5... Nf6 {[%clk 0:02:54.4]} 6. Nc3 {[%clk 0:02:54.6]} 6... d6 {[%clk 0:02:51.8]}
7. Be3 {[%clk 0:02:53.6]} 7... Ng4 {[%clk 0:02:49.1]} 8. Bc1 {[%clk 0:02:32.4]}
8... Qb6 {[%clk 0:02:37.5]} 9. Ncb5 {[%clk 0:01:27.2]} 9... Bg7 {[%clk
0:02:13.2]} 10. Be3 {[%clk 0:01:26.4]} 10... Nxe3 {[%clk 0:02:10.5]} 11. fxe3
{[%clk 0:01:27.3]} 11... a6 {[%clk 0:02:08]} 12. Nxc6 {[%clk 0:01:24.1]} 12...
Qxe3+ {[%clk 0:02:01.2]} 13. Qe2 {[%clk 0:01:23.9]} 13... Qxe2+ {[%clk
0:02:00.4]} 14. Bxe2 {[%clk 0:01:24.2]} 14... axb5 {[%clk 0:02:00.1]} 15. Nb4
{[%clk 0:01:22]} 15... Bxb2 {[%clk 0:01:55]} 16. Rb1 {[%clk 0:01:21.2]} 16...
Bc3+ {[%clk 0:01:53.6]} 17. Kf2 {[%clk 0:01:21.3]} 17... Bxb4 {[%clk 0:01:48.3]}
18. Rxb4 {[%clk 0:01:22.2]} 18... Rxa2 {[%clk 0:01:47.9]} 19. cxb5 {[%clk
0:01:14.1]} 19... Bg4 {[%clk 0:01:45.7]} 20. Re1 {[%clk 0:01:13.5]} 20... Kd7
{[%clk 0:01:44.4]} 21. h3 {[%clk 0:01:07.6]} 21... Bxe2 {[%clk 0:01:42.7]} 22.
Rxe2 {[%clk 0:01:08.5]} 22... Rxe2+ {[%clk 0:01:42.5]} 23. Kxe2 {[%clk
0:01:09.4]} 23... Ra8 {[%clk 0:01:42.1]} 24. Rb2 {[%clk 0:01:05.5]} 24... b6
{[%clk 0:01:35.2]} 25. Kf2 {[%clk 0:01:00.2]} 25... Ra3 {[%clk 0:01:33.3]} 26.
Ke2 {[%clk 0:00:58.6]} 26... h5 {[%clk 0:01:31.9]} 27. Kf2 {[%clk 0:00:58.5]}
27... g5 {[%clk 0:01:30.9]} 28. Ke2 {[%clk 0:00:57.1]} 28... Ke6 {[%clk
0:01:29.3]} 29. Rd2 {[%clk 0:00:51]} 29... Rc3 {[%clk 0:01:18.2]} 30. Kf2 {[%clk
0:00:47.7]} 30... Rc5 {[%clk 0:01:14.5]} 31. Rb2 {[%clk 0:00:48]} 31... Ke5
{[%clk 0:01:14]} 32. Rb4 {[%clk 0:00:47.1]} 32... Rc2+ {[%clk 0:01:11]} 33. Kf3
{[%clk 0:00:44.8]} 33... Rc3+ {[%clk 0:01:10.8]} 34. Kf2 {[%clk 0:00:44.6]}
34... h4 {[%clk 0:01:09.1]} 35. Ke2 {[%clk 0:00:43.6]} 35... Kf4 {[%clk
0:01:06.6]} 36. Ra4 {[%clk 0:00:35.8]} 36... Rc2+ {[%clk 0:01:04]} 37. Kd3
{[%clk 0:00:31.4]} 37... Rxg2 {[%clk 0:00:57.4]} 38. Ra7 {[%clk 0:00:32.3]}
38... Rg3+ {[%clk 0:00:55.6]} 39. Kd4 {[%clk 0:00:32.1]} 39... e5+ {[%clk
0:00:55]} 40. Kd5 {[%clk 0:00:32.3]} 40... Rd3+ {[%clk 0:00:54]} 41. Kc6 {[%clk
0:00:32.3]} 41... Kxe4 {[%clk 0:00:52]} 42. Rxf7 {[%clk 0:00:30.8]} 42... d5
{[%clk 0:00:50.3]} 43. Kxb6 {[%clk 0:00:30.9]} 43... Rxh3 {[%clk 0:00:49.5]} 44.
Rf1 {[%clk 0:00:28.5]} 44... Rb3 {[%clk 0:00:48.4]} 45. Ka5 {[%clk 0:00:28.6]}
45... h3 {[%clk 0:00:47.4]} 46. Ka4 {[%clk 0:00:27.4]} 46... Rb2 {[%clk
0:00:46.7]} 47. Rg1 {[%clk 0:00:21.8]} 47... h2 {[%clk 0:00:44.6]} 48. Rh1
{[%clk 0:00:21.4]} 48... g4 {[%clk 0:00:44.5]} 49. Ka3 {[%clk 0:00:21.6]} 49...
Rxb5 {[%clk 0:00:43.1]} 50. Rxh2 {[%clk 0:00:21.8]} 50... g3 {[%clk 0:00:43.1]}
51. Rg2 {[%clk 0:00:21.8]} 51... Kf3 {[%clk 0:00:42.9]} 52. Rg1 {[%clk
0:00:22.7]} 52... g2 {[%clk 0:00:42.8]} 53. Rb1 {[%clk 0:00:18.7]} 53... Rxb1
{[%clk 0:00:41.7]} 0-1

[Event "*** SCC Grand Prix: Titled Tuesday Blitz"]
[Site "Chess.com"]
[Date "2020.08.25"]
[Round "1"]
[White "Barys1974"]
[Black "AGW2016"]
[Result "0-1"]
[WhiteElo "2639"]
[BlackElo "2341"]
[TimeControl "180+1"]
[EndTime "10:07:23 PDT"]
[Termination "AGW2016 won on time"]

1. e4 {[%clk 0:03:00.9]} 1... c5 {[%clk 0:02:59.2]} 2. Nf3 {[%clk 0:02:59.1]}
2... d6 {[%clk 0:02:58.1]} 3. d4 {[%clk 0:02:56.9]} 3... cxd4 {[%clk 0:02:57.3]}
4. Nxd4 {[%clk 0:02:57.2]} 4... Nf6 {[%clk 0:02:55.5]} 5. f3 {[%clk 0:02:56.8]}
5... Nc6 {[%clk 0:02:54.5]} 6. c4 {[%clk 0:02:55.8]} 6... e6 {[%clk 0:02:55.1]}
7. Nc3 {[%clk 0:02:55.1]} 7... d5 {[%clk 0:02:55.7]} 8. cxd5 {[%clk 0:02:44.6]}
8... exd5 {[%clk 0:02:56.6]} 9. Bb5 {[%clk 0:02:43.8]} 9... Bd7 {[%clk
0:02:09.7]} 10. exd5 {[%clk 0:02:29.6]} 10... Nxd4 {[%clk 0:02:09]} 11. Qxd4
{[%clk 0:02:27.5]} 11... Bd6 {[%clk 0:02:08.1]} 12. O-O {[%clk 0:02:20.5]} 12...
O-O {[%clk 0:02:08.3]} 13. Bxd7 {[%clk 0:02:18]} 13... Qxd7 {[%clk 0:02:07.7]}
14. Bg5 {[%clk 0:02:05.6]} 14... Rac8 {[%clk 0:02:05.9]} 15. Kh1 {[%clk
0:02:05]} 15... Bc5 {[%clk 0:02:04.6]} 16. Qh4 {[%clk 0:01:48.3]} 16... Ne8
{[%clk 0:01:47.6]} 17. Rad1 {[%clk 0:01:43.1]} 17... Nd6 {[%clk 0:01:47.5]} 18.
Ne4 {[%clk 0:01:36.8]} 18... h6 {[%clk 0:01:40]} 19. Bf4 {[%clk 0:01:08.6]}
19... Rfe8 {[%clk 0:01:37.2]} 20. Qg3 {[%clk 0:00:34.7]} 20... Nxe4 {[%clk
0:00:58.8]} 21. fxe4 {[%clk 0:00:35.6]} 21... Rxe4 {[%clk 0:00:52]} 22. h3
{[%clk 0:00:35.3]} 22... h5 {[%clk 0:00:36.4]} 23. a3 {[%clk 0:00:31.8]} 23...
Rd8 {[%clk 0:00:33.1]} 24. d6 {[%clk 0:00:28.8]} 24... Re6 {[%clk 0:00:33.1]}
25. Rd3 {[%clk 0:00:22.8]} 25... Bxd6 {[%clk 0:00:28.5]} 26. Rfd1 {[%clk
0:00:18.1]} 26... Bxf4 {[%clk 0:00:29]} 27. Rxd7 {[%clk 0:00:18]} 27... Rxd7
{[%clk 0:00:22.5]} 28. Qf3 {[%clk 0:00:15.2]} 28... Rxd1+ {[%clk 0:00:22.1]} 29.
Qxd1 {[%clk 0:00:15]} 29... Bg3 {[%clk 0:00:21.8]} 30. Qd8+ {[%clk 0:00:15]}
30... Kh7 {[%clk 0:00:21.4]} 31. Qd3+ {[%clk 0:00:15.5]} 31... Rg6 {[%clk
0:00:20.3]} 32. Qf5 {[%clk 0:00:13.5]} 32... Kg8 {[%clk 0:00:17.8]} 33. Qc8+
{[%clk 0:00:11.4]} 33... Kh7 {[%clk 0:00:18.1]} 34. Qf5 {[%clk 0:00:07.8]} 34...
h4 {[%clk 0:00:18.3]} 35. Kg1 {[%clk 0:00:07.2]} 35... Kg8 {[%clk 0:00:18.1]}
36. Qc8+ {[%clk 0:00:07.2]} 36... Kh7 {[%clk 0:00:18.8]} 37. Qf5 {[%clk
0:00:06.7]} 37... Kh6 {[%clk 0:00:19.5]} 38. Qe4 {[%clk 0:00:04.8]} 38... Re6
{[%clk 0:00:18.9]} 0-1

[Event "*** SCC Grand Prix: Titled Tuesday Blitz"]
[Site "Chess.com"]
[Date "2020.08.25"]
[Round "1"]
[White "BakaPG"]
[Black "Olga_Zhuravleva"]
[Result "1-0"]
[WhiteElo "2679"]
[BlackElo "2348"]
[TimeControl "180+1"]
[EndTime "10:07:24 PDT"]
[Termination "BakaPG won by checkmate"]

1. e4 {[%clk 0:03:00.9]} 1... e5 {[%clk 0:02:59.4]} 2. Nf3 {[%clk 0:03:00.2]}
2... Nc6 {[%clk 0:02:59.8]} 3. Bb5 {[%clk 0:02:58.7]} 3... f5 {[%clk 0:02:58.4]}
4. d3 {[%clk 0:02:56.1]} 4... Nf6 {[%clk 0:02:57.3]} 5. O-O {[%clk 0:02:52.6]}
5... Bc5 {[%clk 0:02:56.5]} 6. Bc4 {[%clk 0:02:39.2]} 6... d6 {[%clk 0:02:53.9]}
7. Ng5 {[%clk 0:02:36.6]} 7... Qe7 {[%clk 0:02:21.8]} 8. a3 {[%clk 0:02:28.3]}
8... h6 {[%clk 0:02:03.4]} 9. Nf3 {[%clk 0:02:27.7]} 9... fxe4 {[%clk
0:01:50.1]} 10. dxe4 {[%clk 0:02:27.8]} 10... Nxe4 {[%clk 0:01:47.7]} 11. Nbd2
{[%clk 0:02:12.7]} 11... Nf6 {[%clk 0:01:42]} 12. b4 {[%clk 0:02:06.6]} 12...
Bb6 {[%clk 0:01:41.1]} 13. Bb2 {[%clk 0:02:04.3]} 13... Bg4 {[%clk 0:01:37.7]}
14. h3 {[%clk 0:02:01.2]} 14... Bh5 {[%clk 0:01:37]} 15. Qb1 {[%clk 0:01:41.2]}
15... a6 {[%clk 0:01:11.8]} 16. Nh4 {[%clk 0:01:37.3]} 16... d5 {[%clk 0:01:03]}
17. Bb3 {[%clk 0:01:31]} 17... O-O {[%clk 0:00:53.1]} 18. c4 {[%clk 0:01:29.7]}
18... Kh8 {[%clk 0:00:31.9]} 19. c5 {[%clk 0:01:24]} 19... Ba7 {[%clk 0:00:30]}
20. Re1 {[%clk 0:01:23.8]} 20... Ne4 {[%clk 0:00:20.4]} 21. Nxe4 {[%clk
0:01:19.7]} 21... Qxh4 {[%clk 0:00:20.2]} 22. Bxd5 {[%clk 0:01:17.3]} 22... Rad8
{[%clk 0:00:19.1]} 23. Bxc6 {[%clk 0:01:15.3]} 23... bxc6 {[%clk 0:00:20]} 24.
Ng3 {[%clk 0:01:10.1]} 24... Bf7 {[%clk 0:00:18.1]} 25. Qe4 {[%clk 0:01:04.5]}
25... Qf6 {[%clk 0:00:16.4]} 26. Bxe5 {[%clk 0:01:03.1]} 26... Qg5 {[%clk
0:00:15.5]} 27. h4 {[%clk 0:00:58.1]} 27... Qg6 {[%clk 0:00:13]} 28. Nf5 {[%clk
0:00:54.2]} 28... Rg8 {[%clk 0:00:11.1]} 29. Ne7 {[%clk 0:00:51.5]} 29... Qxe4
{[%clk 0:00:10.1]} 30. Rxe4 {[%clk 0:00:50.2]} 30... Rge8 {[%clk 0:00:10.7]} 31.
Nxc6 {[%clk 0:00:47.9]} 31... Bb8 {[%clk 0:00:09.2]} 32. Nxd8 {[%clk 0:00:47.1]}
32... Rxd8 {[%clk 0:00:08.8]} 33. Rd4 {[%clk 0:00:46.3]} 33... Re8 {[%clk
0:00:08.7]} 34. f4 {[%clk 0:00:45.8]} 34... c6 {[%clk 0:00:07.3]} 35. Bxb8
{[%clk 0:00:44.3]} 35... Rxb8 {[%clk 0:00:08.2]} 36. Re1 {[%clk 0:00:43.8]}
36... Bd5 {[%clk 0:00:08.8]} 37. Re7 {[%clk 0:00:42]} 37... a5 {[%clk
0:00:08.3]} 38. f5 {[%clk 0:00:41.9]} 38... axb4 {[%clk 0:00:08.2]} 39. axb4
{[%clk 0:00:42]} 39... Rf8 {[%clk 0:00:08.5]} 40. g4 {[%clk 0:00:40.5]} 40...
Ra8 {[%clk 0:00:07.8]} 41. g5 {[%clk 0:00:39]} 41... Ra1+ {[%clk 0:00:07.9]} 42.
Kf2 {[%clk 0:00:38.5]} 42... Ra2+ {[%clk 0:00:07.9]} 43. Kg3 {[%clk 0:00:38.1]}
43... Rg2+ {[%clk 0:00:08.1]} 44. Kf4 {[%clk 0:00:37.4]} 44... hxg5+ {[%clk
0:00:08.4]} 45. hxg5 {[%clk 0:00:36.6]} 45... Rf2+ {[%clk 0:00:09.1]} 46. Ke5
{[%clk 0:00:36.3]} 46... Rg2 {[%clk 0:00:07.9]} 47. Re8+ {[%clk 0:00:33.1]}
47... Bg8 {[%clk 0:00:05.2]} 48. Rh4# {[%clk 0:00:32.5]} 1-0

[Event "*** SCC Grand Prix: Titled Tuesday Blitz"]
[Site "Chess.com"]
[Date "2020.08.25"]
[Round "1"]
[White "SahajGrover"]
[Black "InitiatingASC"]
[Result "1-0"]
[WhiteElo "2676"]
[BlackElo "2346"]
[TimeControl "180+1"]
[EndTime "10:07:24 PDT"]
[Termination "SahajGrover won by resignation"]

1. e4 {[%clk 0:03:00.9]} 1... c5 {[%clk 0:02:59.8]} 2. Nf3 {[%clk 0:03:00.7]}
2... Nc6 {[%clk 0:02:59.7]} 3. Nc3 {[%clk 0:03:00.3]} 3... Nf6 {[%clk
0:02:59.4]} 4. Bb5 {[%clk 0:03:00.2]} 4... g6 {[%clk 0:02:58.5]} 5. e5 {[%clk
0:03:00]} 5... Ng4 {[%clk 0:02:57.6]} 6. Bxc6 {[%clk 0:03:00.2]} 6... dxc6
{[%clk 0:02:57.5]} 7. h3 {[%clk 0:03:01.1]} 7... Nh6 {[%clk 0:02:57.5]} 8. g4
{[%clk 0:03:01.6]} 8... Bg7 {[%clk 0:02:54.3]} 9. d3 {[%clk 0:03:01.2]} 9... f6
{[%clk 0:02:49.7]} 10. exf6 {[%clk 0:02:48.6]} 10... exf6 {[%clk 0:02:49.3]} 11.
Qe2+ {[%clk 0:02:48.9]} 11... Qe7 {[%clk 0:02:47.9]} 12. Qxe7+ {[%clk 0:02:47]}
12... Kxe7 {[%clk 0:02:48.8]} 13. Be3 {[%clk 0:02:43.6]} 13... b6 {[%clk
0:02:48]} 14. O-O-O {[%clk 0:02:43.3]} 14... Be6 {[%clk 0:02:39.5]} 15. d4
{[%clk 0:02:39.4]} 15... c4 {[%clk 0:02:07]} 16. d5 {[%clk 0:02:37.5]} 16...
cxd5 {[%clk 0:02:04.9]} 17. Nxd5+ {[%clk 0:02:38.4]} 17... Bxd5 {[%clk
0:01:58.5]} 18. Rxd5 {[%clk 0:02:39.3]} 18... Rad8 {[%clk 0:01:58.6]} 19. Rhd1
{[%clk 0:02:21.3]} 19... Nf7 {[%clk 0:01:50.8]} 20. a4 {[%clk 0:02:06.7]} 20...
Rxd5 {[%clk 0:01:39.4]} 21. Rxd5 {[%clk 0:02:07.6]} 21... Rd8 {[%clk 0:01:39.6]}
22. Rxd8 {[%clk 0:02:04.5]} 22... Kxd8 {[%clk 0:01:40.5]} 23. Nd4 {[%clk
0:02:02.7]} 23... Kd7 {[%clk 0:01:34]} 24. Nb5 {[%clk 0:02:02.7]} 24... a6
{[%clk 0:01:33]} 25. Na3 {[%clk 0:02:02.8]} 25... c3 {[%clk 0:01:13.8]} 26. bxc3
{[%clk 0:01:50.3]} 26... Kc6 {[%clk 0:01:12.2]} 27. Bd4 {[%clk 0:01:41.7]} 27...
Bh6+ {[%clk 0:01:05.2]} 28. Kd1 {[%clk 0:01:38.9]} 28... f5 {[%clk 0:01:05.1]}
29. Ke2 {[%clk 0:01:23]} 29... Nd6 {[%clk 0:01:04.2]} 30. Be5 {[%clk 0:00:38.8]}
30... Nb7 {[%clk 0:00:59.3]} 31. gxf5 {[%clk 0:00:28.5]} 31... gxf5 {[%clk
0:00:58.6]} 32. Bd4 {[%clk 0:00:29]} 32... Nc5 {[%clk 0:00:55]} 33. Bxc5 {[%clk
0:00:26.3]} 33... Kxc5 {[%clk 0:00:55.9]} 34. Kd3 {[%clk 0:00:26.5]} 34... Bg7
{[%clk 0:00:31.4]} 35. Nc4 {[%clk 0:00:23.6]} 35... b5 {[%clk 0:00:17.2]} 36.
axb5 {[%clk 0:00:24.5]} 36... axb5 {[%clk 0:00:18.1]} 37. Ne3 {[%clk 0:00:24.1]}
37... f4 {[%clk 0:00:18.3]} 38. Nf5 {[%clk 0:00:24.4]} 38... Be5 {[%clk
0:00:17.9]} 39. Nd4 {[%clk 0:00:24.4]} 39... b4 {[%clk 0:00:16.6]} 40. cxb4+
{[%clk 0:00:24.7]} 40... Kxb4 {[%clk 0:00:16.2]} 41. Ke4 {[%clk 0:00:24.6]}
41... Bc7 {[%clk 0:00:14.2]} 42. Ne2 {[%clk 0:00:24.7]} 42... Kc4 {[%clk
0:00:11.7]} 43. Nxf4 {[%clk 0:00:25]} 43... Kc3 {[%clk 0:00:12.3]} 44. Nd5+
{[%clk 0:00:25.6]} 44... Kxc2 {[%clk 0:00:12.7]} 45. Nxc7 {[%clk 0:00:26.5]} 1-0

[Event "*** SCC Grand Prix: Titled Tuesday Blitz"]
[Site "Chess.com"]
[Date "2020.08.25"]
[Round "1"]
[White "K_A_S_T_O_R"]
[Black "GuerrieroFromLevant"]
[Result "1-0"]
[WhiteElo "2724"]
[BlackElo "2381"]
[TimeControl "180+1"]
[EndTime "10:07:25 PDT"]
[Termination "K_A_S_T_O_R won by resignation"]

1. e4 {[%clk 0:03:00.9]} 1... e6 {[%clk 0:02:58.9]} 2. d4 {[%clk 0:02:58.6]}
2... d5 {[%clk 0:02:57.1]} 3. Nc3 {[%clk 0:02:59]} 3... Nf6 {[%clk 0:02:54.8]}
4. e5 {[%clk 0:02:59.1]} 4... Nfd7 {[%clk 0:02:54.9]} 5. Nce2 {[%clk 0:02:59.2]}
5... c5 {[%clk 0:02:55.1]} 6. c3 {[%clk 0:02:59.5]} 6... Nc6 {[%clk 0:02:55.9]}
7. f4 {[%clk 0:02:59]} 7... b5 {[%clk 0:02:56.5]} 8. a3 {[%clk 0:02:58.6]} 8...
Qb6 {[%clk 0:02:56.5]} 9. Nf3 {[%clk 0:02:56.9]} 9... a5 {[%clk 0:02:54.2]} 10.
f5 {[%clk 0:02:54.3]} 10... exf5 {[%clk 0:02:48.3]} 11. Nf4 {[%clk 0:02:53.8]}
11... Ne7 {[%clk 0:02:48.8]} 12. Bd3 {[%clk 0:02:50]} 12... h6 {[%clk
0:02:37.1]} 13. h4 {[%clk 0:02:35.9]} 13... Bb7 {[%clk 0:02:34.9]} 14. Qe2
{[%clk 0:02:32.1]} 14... c4 {[%clk 0:02:28.1]} 15. Bc2 {[%clk 0:02:31.6]} 15...
O-O-O {[%clk 0:02:27.1]} 16. b3 {[%clk 0:02:21.5]} 16... Rg8 {[%clk 0:02:23.4]}
17. bxc4 {[%clk 0:02:18.5]} 17... dxc4 {[%clk 0:02:22.3]} 18. Be3 {[%clk
0:01:58.6]} 18... g5 {[%clk 0:02:19.8]} 19. hxg5 {[%clk 0:01:49.9]} 19... hxg5
{[%clk 0:02:19.5]} 20. Nh5 {[%clk 0:01:49.9]} 20... f4 {[%clk 0:02:14.1]} 21.
Bd2 {[%clk 0:01:44.7]} 21... Nd5 {[%clk 0:02:05.7]} 22. Rb1 {[%clk 0:01:40.3]}
22... g4 {[%clk 0:01:58.4]} 23. Nh4 {[%clk 0:01:37.2]} 23... Bxa3 {[%clk
0:01:30]} 24. Nxf4 {[%clk 0:01:31.5]} 24... Nf8 {[%clk 0:01:21.5]} 25. Nf5
{[%clk 0:01:29.1]} 25... Nxf4 {[%clk 0:01:16.9]} 26. Bxf4 {[%clk 0:01:27.9]}
26... Ne6 {[%clk 0:01:17.5]} 27. Be3 {[%clk 0:01:21.8]} 27... Qc6 {[%clk
0:01:16.6]} 28. O-O {[%clk 0:01:15.9]} 28... Rh8 {[%clk 0:00:53.7]} 29. Ra1
{[%clk 0:01:14.8]} 29... Bf8 {[%clk 0:00:52.5]} 30. Rxa5 {[%clk 0:01:10]} 30...
g3 {[%clk 0:00:51.1]} 31. Nxg3 {[%clk 0:01:04.4]} 31... Qb6 {[%clk 0:00:48.3]}
32. Rfa1 {[%clk 0:00:54]} 32... Nc7 {[%clk 0:00:48.1]} 33. Ne4 {[%clk 0:00:34]}
33... Nd5 {[%clk 0:00:48.1]} 34. Bd2 {[%clk 0:00:31.9]} 34... Rh4 {[%clk
0:00:40.4]} 35. Qf2 {[%clk 0:00:31.1]} 35... Be7 {[%clk 0:00:34.6]} 36. Bg5
{[%clk 0:00:20.6]} 36... Rxe4 {[%clk 0:00:31.6]} 37. Bxe4 {[%clk 0:00:19.7]}
37... Bxg5 {[%clk 0:00:30.8]} 38. Qf5+ {[%clk 0:00:18.9]} 38... Kc7 {[%clk
0:00:28.7]} 39. Qxg5 {[%clk 0:00:18.8]} 39... Nxc3 {[%clk 0:00:28.9]} 40. Bxb7
{[%clk 0:00:14.3]} 40... Kxb7 {[%clk 0:00:26.8]} 41. Qe7+ {[%clk 0:00:13.5]}
41... Kc6 {[%clk 0:00:18.6]} 42. Ra6 {[%clk 0:00:13.5]} 42... Nd5 {[%clk
0:00:19]} 43. Qxd8 {[%clk 0:00:12.5]} 1-0

[Event "*** SCC Grand Prix: Titled Tuesday Blitz"]
[Site "Chess.com"]
[Date "2020.08.25"]
[Round "1"]
[White "shnitez"]
[Black "hansen"]
[Result "0-1"]
[WhiteElo "2446"]
[BlackElo "2934"]
[TimeControl "180+1"]
[EndTime "10:07:26 PDT"]
[Termination "hansen won by resignation"]

1. c4 {[%clk 0:02:46.2]} 1... e5 {[%clk 0:02:59.8]} 2. Nc3 {[%clk 0:02:41.5]}
2... Nf6 {[%clk 0:02:59.4]} 3. Nf3 {[%clk 0:02:42]} 3... Nc6 {[%clk 0:02:58.7]}
4. e4 {[%clk 0:02:41.6]} 4... Bb4 {[%clk 0:02:54]} 5. d3 {[%clk 0:02:37.8]} 5...
O-O {[%clk 0:02:53.4]} 6. Be2 {[%clk 0:02:37.3]} 6... d6 {[%clk 0:02:52.5]} 7.
O-O {[%clk 0:02:37.5]} 7... Nd7 {[%clk 0:02:51.7]} 8. Nd5 {[%clk 0:02:32.1]}
8... Bc5 {[%clk 0:02:51.8]} 9. Be3 {[%clk 0:02:30.6]} 9... a5 {[%clk 0:02:49.3]}
10. d4 {[%clk 0:02:27.1]} 10... exd4 {[%clk 0:02:41.7]} 11. Nxd4 {[%clk
0:02:28]} 11... Re8 {[%clk 0:02:42.2]} 12. f3 {[%clk 0:02:22.4]} 12... Nxd4
{[%clk 0:02:37]} 13. Bxd4 {[%clk 0:02:22.4]} 13... f5 {[%clk 0:02:37.9]} 14. Nc3
{[%clk 0:01:52.1]} 14... Qf6 {[%clk 0:02:27.6]} 15. Bf2 {[%clk 0:01:36]} 15...
Bxf2+ {[%clk 0:02:25.2]} 16. Rxf2 {[%clk 0:01:36.2]} 16... Nc5 {[%clk
0:02:26.1]} 17. exf5 {[%clk 0:01:15.1]} 17... Bxf5 {[%clk 0:02:25.7]} 18. Bf1
{[%clk 0:01:14.2]} 18... Re5 {[%clk 0:02:10.6]} 19. Qd4 {[%clk 0:00:47]} 19...
Rae8 {[%clk 0:02:09.3]} 20. Rd1 {[%clk 0:00:33.4]} 20... Qf7 {[%clk 0:01:58.6]}
21. b3 {[%clk 0:00:28.3]} 21... b6 {[%clk 0:01:58.2]} 22. Nd5 {[%clk 0:00:21.5]}
22... Bd7 {[%clk 0:01:54.2]} 23. Qd2 {[%clk 0:00:19.7]} 23... Bc6 {[%clk
0:01:45]} 24. Nc3 {[%clk 0:00:17.7]} 24... Qf6 {[%clk 0:01:42.4]} 25. Qc2 {[%clk
0:00:14.9]} 25... Re3 {[%clk 0:01:40.3]} 26. Nd5 {[%clk 0:00:13.8]} 26... Bxd5
{[%clk 0:01:40.1]} 27. Rxd5 {[%clk 0:00:12]} 27... Re1 {[%clk 0:01:38.1]} 28.
Rd1 {[%clk 0:00:12]} 28... Rxd1 {[%clk 0:01:29.8]} 29. Qxd1 {[%clk 0:00:12.9]}
29... Qc3 {[%clk 0:01:30.1]} 30. Qd2 {[%clk 0:00:12.1]} 30... Qa1 {[%clk
0:01:29]} 31. g3 {[%clk 0:00:11.1]} 31... g6 {[%clk 0:01:27.6]} 32. h4 {[%clk
0:00:10.4]} 32... Re1 {[%clk 0:01:13.1]} 33. Kg2 {[%clk 0:00:10.3]} 33... Qe5
{[%clk 0:01:12.2]} 34. Kh2 {[%clk 0:00:08.9]} 34... Kg7 {[%clk 0:01:08.6]} 35.
Re2 {[%clk 0:00:07.1]} 35... Rxe2+ {[%clk 0:01:08]} 36. Bxe2 {[%clk 0:00:08]}
36... a4 {[%clk 0:00:57.4]} 37. b4 {[%clk 0:00:06.6]} 37... Ne6 {[%clk 0:00:58]}
38. Kg2 {[%clk 0:00:05.5]} 38... a3 {[%clk 0:00:57.5]} 39. Kf2 {[%clk
0:00:05.1]} 39... Nd4 {[%clk 0:00:54]} 40. Bf1 {[%clk 0:00:04.1]} 40... Nf5
{[%clk 0:00:53.9]} 41. f4 {[%clk 0:00:02.2]} 41... Qa1 {[%clk 0:00:35.3]} 42.
Be2 {[%clk 0:00:01]} 42... h5 {[%clk 0:00:34.1]} 43. Qd3 {[%clk 0:00:01.1]}
43... Qxa2 {[%clk 0:00:30.9]} 44. Qe4 {[%clk 0:00:01.2]} 44... Qb2 {[%clk
0:00:29.7]} 45. Qc6 {[%clk 0:00:01.1]} 45... a2 {[%clk 0:00:28.5]} 46. Qxc7+
{[%clk 0:00:02]} 46... Kh6 {[%clk 0:00:28.6]} 47. Qd8 {[%clk 0:00:02.3]} 47...
a1=Q {[%clk 0:00:28.4]} 48. Qg5+ {[%clk 0:00:02.3]} 48... Kh7 {[%clk 0:00:28.4]}
49. g4 {[%clk 0:00:02.6]} 49... Qd4+ {[%clk 0:00:27.9]} 0-1

[Event "*** SCC Grand Prix: Titled Tuesday Blitz"]
[Site "Chess.com"]
[Date "2020.08.25"]
[Round "1"]
[White "tylityli"]
[Black "TwentyHoursADay"]
[Result "1-0"]
[WhiteElo "2201"]
[BlackElo "2489"]
[TimeControl "180+1"]
[EndTime "10:07:26 PDT"]
[Termination "tylityli won by resignation"]

1. d4 {[%clk 0:03:00.8]} 1... Nf6 {[%clk 0:02:59.2]} 2. c4 {[%clk 0:03:00.4]}
2... d6 {[%clk 0:02:57.9]} 3. Nf3 {[%clk 0:02:58.3]} 3... Nbd7 {[%clk
0:02:56.8]} 4. Nc3 {[%clk 0:02:57.8]} 4... e5 {[%clk 0:02:57]} 5. d5 {[%clk
0:02:57.7]} 5... g6 {[%clk 0:02:56.9]} 6. e4 {[%clk 0:02:58]} 6... Bg7 {[%clk
0:02:57.2]} 7. g3 {[%clk 0:02:58.1]} 7... O-O {[%clk 0:02:57.3]} 8. Bg2 {[%clk
0:02:58.5]} 8... c5 {[%clk 0:02:57.5]} 9. O-O {[%clk 0:02:58.1]} 9... Ne8 {[%clk
0:02:54.5]} 10. Nh4 {[%clk 0:02:56.7]} 10... f5 {[%clk 0:02:53.8]} 11. exf5
{[%clk 0:02:56]} 11... gxf5 {[%clk 0:02:53.8]} 12. f4 {[%clk 0:02:55.7]} 12...
e4 {[%clk 0:02:52.2]} 13. Be3 {[%clk 0:02:55.2]} 13... Ndf6 {[%clk 0:02:51.4]}
14. h3 {[%clk 0:02:53.6]} 14... Kh8 {[%clk 0:02:42.9]} 15. Kh2 {[%clk
0:02:52.3]} 15... Qe7 {[%clk 0:02:40.2]} 16. Qe1 {[%clk 0:02:51.8]} 16... Rg8
{[%clk 0:02:39.5]} 17. Bf2 {[%clk 0:02:46.5]} 17... Bd7 {[%clk 0:02:36.2]} 18.
g4 {[%clk 0:02:45.8]} 18... fxg4 {[%clk 0:02:34]} 19. Nxe4 {[%clk 0:02:43.8]}
19... gxh3 {[%clk 0:02:27.1]} 20. Bf3 {[%clk 0:02:31.9]} 20... Ng4+ {[%clk
0:01:56.7]} 21. Bxg4 {[%clk 0:02:26.7]} 21... Bxg4 {[%clk 0:01:57.2]} 22. Ng5
{[%clk 0:02:23.2]} 22... Bf6 {[%clk 0:01:25.5]} 23. Ne6 {[%clk 0:02:06.7]} 23...
Nc7 {[%clk 0:01:07.8]} 24. f5 {[%clk 0:01:52.9]} 24... Nxe6 {[%clk 0:01:06]} 25.
dxe6 {[%clk 0:01:39.1]} 25... Bxb2 {[%clk 0:00:58.7]} 26. Rb1 {[%clk 0:01:36.6]}
26... Bf6 {[%clk 0:00:57.5]} 27. Bg3 {[%clk 0:01:32.5]} 27... Rad8 {[%clk
0:00:51.7]} 28. Rb3 {[%clk 0:01:28.7]} 28... Rg5 {[%clk 0:00:50.1]} 29. Qe4
{[%clk 0:01:27]} 29... b6 {[%clk 0:00:47.9]} 30. Nf3 {[%clk 0:01:24.8]} 30...
Rg7 {[%clk 0:00:43]} 31. Rd3 {[%clk 0:01:15.2]} 31... Rdg8 {[%clk 0:00:36.3]}
32. Bxd6 {[%clk 0:01:09.9]} 32... Qe8 {[%clk 0:00:36.2]} 33. Be5 {[%clk
0:01:07.6]} 33... Bxf3 {[%clk 0:00:32.4]} 34. Rdxf3 {[%clk 0:01:00.9]} 34...
Rg2+ {[%clk 0:00:29.1]} 35. Kh1 {[%clk 0:00:59.4]} 35... Qe7 {[%clk 0:00:25.5]}
36. Rxh3 {[%clk 0:00:55.1]} 36... R8g4 {[%clk 0:00:23]} 37. Bxf6+ {[%clk
0:00:45.1]} 37... Qxf6 {[%clk 0:00:21.9]} 38. Qxg2 {[%clk 0:00:44.7]} 38... Rxg2
{[%clk 0:00:20.7]} 39. Kxg2 {[%clk 0:00:44.8]} 39... Qg5+ {[%clk 0:00:19.4]} 40.
Rg3 {[%clk 0:00:43.4]} 40... Qf6 {[%clk 0:00:18.2]} 41. Re1 {[%clk 0:00:36.4]}
41... Qb2+ {[%clk 0:00:17.1]} 42. Kf3 {[%clk 0:00:33.4]} 42... Qc3+ {[%clk
0:00:16.1]} 43. Re3 {[%clk 0:00:32.9]} 43... Qc1 {[%clk 0:00:12.1]} 44. e7
{[%clk 0:00:31.6]} 44... Qf1+ {[%clk 0:00:11.7]} 45. Kg4 {[%clk 0:00:28.4]}
45... Qd1+ {[%clk 0:00:12]} 46. Kg5 {[%clk 0:00:26.8]} 46... h6+ {[%clk
0:00:09.6]} 47. Kg6 {[%clk 0:00:26.5]} 47... Qd6+ {[%clk 0:00:08.6]} 48. f6
{[%clk 0:00:25.8]} 1-0